[Event "Live Chess"]
[Site "Chess.com"]
[Date "2023.05.21"]
[Round "-"]
[White "peter-785"]
[Black "LutherSullivan"]
[Result "0-1"]
[WhiteElo "1166"]
[BlackElo "2137"]
[TimeControl "300"]
[EndTime "16:51:36 PDT"]
[Termination "LutherSullivan won by checkmate"]

1. e4 {[%clk 0:04:58.1]} 1... c5 {[%clk 0:04:57.5]} 2. Nf3 {[%clk 0:04:57.5]}
2... Nc6 {[%clk 0:04:57.1]} 3. Bc4 {[%clk 0:04:56.7]} 3... g6 {[%clk 0:04:55.5]}
4. d4 {[%clk 0:04:56.1]} 4... cxd4 {[%clk 0:04:53.8]} 5. Nxd4 {[%clk 0:04:55]}
5... Bg7 {[%clk 0:04:53.4]} 6. Nxc6 {[%clk 0:04:52.4]} 6... bxc6 {[%clk
0:04:52.9]} 7. c3 {[%clk 0:04:50.3]} 7... e6 {[%clk 0:04:52.1]} 8. O-O {[%clk
0:04:47.4]} 8... d5 {[%clk 0:04:51.3]} 9. exd5 {[%clk 0:04:41.3]} 9... cxd5
{[%clk 0:04:50.6]} 10. Bb5+ {[%clk 0:04:38.7]} 10... Bd7 {[%clk 0:04:47.9]} 11.
Qa4 {[%clk 0:04:29.1]} 11... Ne7 {[%clk 0:04:44.8]} 12. Bxd7+ {[%clk 0:04:26.2]}
12... Qxd7 {[%clk 0:04:42.1]} 13. Qxd7+ {[%clk 0:04:23.3]} 13... Kxd7 {[%clk
0:04:41.1]} 14. Nd2 {[%clk 0:04:18.9]} 14... a5 {[%clk 0:04:37.7]} 15. Nf3
{[%clk 0:03:55.7]} 15... Nc6 {[%clk 0:04:32]} 16. Be3 {[%clk 0:03:38.7]} 16...
a4 {[%clk 0:04:29.1]} 17. a3 {[%clk 0:03:37.2]} 17... Rab8 {[%clk 0:04:25.5]}
18. Ra2 {[%clk 0:03:16.3]} 18... Rb5 {[%clk 0:04:14.8]} 19. Bd4 {[%clk
0:03:09.6]} 19... Nxd4 {[%clk 0:04:08.6]} 20. Nxd4 {[%clk 0:03:07]} 20... Bxd4
{[%clk 0:04:07.2]} 21. cxd4 {[%clk 0:03:05.3]} 21... Rc8 {[%clk 0:04:06.5]} 22.
Rb1 {[%clk 0:02:07.1]} 22... Rc2 {[%clk 0:03:42.7]} 23. h3 {[%clk 0:01:52.9]}
23... Rb3 {[%clk 0:03:34.6]} 24. Kf1 {[%clk 0:01:39.4]} 24... Rd3 {[%clk
0:03:31.3]} 25. Raa1 {[%clk 0:01:31]} 25... Rdd2 {[%clk 0:03:22.7]} 26. b4
{[%clk 0:01:23]} 26... Rxf2+ {[%clk 0:03:20.5]} 27. Ke1 {[%clk 0:01:19.2]} 27...
Rxg2 {[%clk 0:03:16.7]} 28. b5 {[%clk 0:01:18.2]} 28... Rg1# {[%clk 0:03:15.3]}
0-1

[Event "Live Chess"]
[Site "Chess.com"]
[Date "2023.05.21"]
[Round "-"]
[White "blowerd"]
[Black "KGreenGator"]
[Result "0-1"]
[WhiteElo "1383"]
[BlackElo "1771"]
[TimeControl "300"]
[EndTime "16:51:37 PDT"]
[Termination "KGreenGator won on time"]

1. e4 {[%clk 0:04:58.5]} 1... c5 {[%clk 0:04:58.9]} 2. Nf3 {[%clk 0:04:56.3]}
2... Nc6 {[%clk 0:04:58.3]} 3. Bc4 {[%clk 0:04:53.8]} 3... e6 {[%clk 0:04:57]}
4. Nc3 {[%clk 0:04:50.5]} 4... Nf6 {[%clk 0:04:54.4]} 5. d3 {[%clk 0:04:47.5]}
5... a6 {[%clk 0:04:51.9]} 6. Bg5 {[%clk 0:04:46.2]} 6... Be7 {[%clk 0:04:49.8]}
7. d4 {[%clk 0:04:39]} 7... cxd4 {[%clk 0:04:47.8]} 8. Nxd4 {[%clk 0:04:37.2]}
8... e5 {[%clk 0:04:47.1]} 9. Nxc6 {[%clk 0:04:34.4]} 9... bxc6 {[%clk
0:04:45.4]} 10. O-O {[%clk 0:04:29.7]} 10... O-O {[%clk 0:04:43.7]} 11. Re1
{[%clk 0:04:06.9]} 11... Bb7 {[%clk 0:04:42.4]} 12. a3 {[%clk 0:04:01.2]} 12...
Re8 {[%clk 0:04:39.4]} 13. Qf3 {[%clk 0:03:47]} 13... Rc8 {[%clk 0:04:31.6]} 14.
Bb3 {[%clk 0:03:43.8]} 14... d6 {[%clk 0:04:25.2]} 15. Rad1 {[%clk 0:03:40]}
15... c5 {[%clk 0:04:22.5]} 16. Nd5 {[%clk 0:03:31.2]} 16... Nxd5 {[%clk
0:04:19]} 17. Bxe7 {[%clk 0:03:24.6]} 17... Nxe7 {[%clk 0:04:13.7]} 18. Qxf7+
{[%clk 0:03:20.9]} 18... Kh8 {[%clk 0:04:10.7]} 19. Rd2 {[%clk 0:03:06.8]} 19...
Rf8 {[%clk 0:04:09.6]} 20. Qe6 {[%clk 0:03:01.4]} 20... Qc7 {[%clk 0:03:52.8]}
21. Rxd6 {[%clk 0:02:41.6]} 21... Ng6 {[%clk 0:03:49.5]} 22. f3 {[%clk
0:02:22.8]} 22... Qa5 {[%clk 0:03:38.7]} 23. Red1 {[%clk 0:02:15.8]} 23... Rce8
{[%clk 0:03:16.7]} 24. Qd7 {[%clk 0:02:04.9]} 24... Ba8 {[%clk 0:03:04.3]} 25.
Qg4 {[%clk 0:01:49.9]} 25... Nf4 {[%clk 0:02:57.9]} 26. Rd7 {[%clk 0:01:32.5]}
26... Ng6 {[%clk 0:02:50.7]} 27. R7d6 {[%clk 0:01:06.3]} 27... Rf6 {[%clk
0:02:42.7]} 28. Rxf6 {[%clk 0:00:50.5]} 28... gxf6 {[%clk 0:02:41.2]} 29. Qd7
{[%clk 0:00:20.4]} 29... Re7 {[%clk 0:02:24.4]} 30. Qd8+ {[%clk 0:00:15.9]}
30... Qxd8 {[%clk 0:02:22.1]} 31. Rxd8+ {[%clk 0:00:14.3]} 31... Kg7 {[%clk
0:02:21.4]} 32. Rxa8 {[%clk 0:00:13.1]} 32... Nf4 {[%clk 0:02:18.7]} 33. Rg8+
{[%clk 0:00:11.5]} 33... Kh6 {[%clk 0:02:16.6]} 34. Rg4 {[%clk 0:00:08.7]} 34...
Rd7 {[%clk 0:02:13.3]} 35. Rh4+ {[%clk 0:00:07]} 35... Kg6 {[%clk 0:02:10.2]}
36. c3 {[%clk 0:00:06]} 36... Ne2+ {[%clk 0:02:07.6]} 37. Kf2 {[%clk 0:00:04.1]}
37... Nc1 {[%clk 0:02:06.2]} 38. Bc2 {[%clk 0:00:01.9]} 38... Rd2+ {[%clk
0:02:03.3]} 0-1

[Event "Live Chess"]
[Site "Chess.com"]
[Date "2023.05.21"]
[Round "-"]
[White "DaveL5678"]
[Black "AlanPaling"]
[Result "0-1"]
[WhiteElo "1009"]
[BlackElo "1384"]
[TimeControl "300"]
[EndTime "16:51:43 PDT"]
[Termination "AlanPaling won on time"]

1. e4 {[%clk 0:04:55.8]} 1... Nf6 {[%clk 0:04:58.6]} 2. e5 {[%clk 0:04:52.9]}
2... Nd5 {[%clk 0:04:57.7]} 3. c4 {[%clk 0:04:50.8]} 3... Nb6 {[%clk 0:04:56.9]}
4. b3 {[%clk 0:04:48.1]} 4... d6 {[%clk 0:04:55.1]} 5. exd6 {[%clk 0:04:46.2]}
5... cxd6 {[%clk 0:04:53.9]} 6. Nf3 {[%clk 0:04:39.1]} 6... Bg4 {[%clk
0:04:52.2]} 7. Be2 {[%clk 0:04:37]} 7... e6 {[%clk 0:04:50.8]} 8. O-O {[%clk
0:04:28.9]} 8... Be7 {[%clk 0:04:48.4]} 9. Re1 {[%clk 0:04:27.7]} 9... Bf6
{[%clk 0:04:45.8]} 10. Nc3 {[%clk 0:04:19.4]} 10... O-O {[%clk 0:04:41.7]} 11.
Rb1 {[%clk 0:04:15]} 11... d5 {[%clk 0:04:39.3]} 12. cxd5 {[%clk 0:04:10.1]}
12... Nxd5 {[%clk 0:04:37.7]} 13. Ba3 {[%clk 0:03:54.9]} 13... Nxc3 {[%clk
0:04:31.3]} 14. dxc3 {[%clk 0:03:49.7]} 14... Re8 {[%clk 0:04:12.3]} 15. Qxd8
{[%clk 0:03:29.8]} 15... Rxd8 {[%clk 0:04:10.5]} 16. h3 {[%clk 0:03:28.7]} 16...
Bh5 {[%clk 0:04:08.2]} 17. Rbd1 {[%clk 0:03:02]} 17... Nc6 {[%clk 0:04:06.4]}
18. Bd6 {[%clk 0:02:45.1]} 18... Bxc3 {[%clk 0:03:58.9]} 19. Rf1 {[%clk
0:02:30]} 19... Bb4 {[%clk 0:03:52.1]} 20. Bxb4 {[%clk 0:02:25]} 20... Nxb4
{[%clk 0:03:50.7]} 21. Rxd8+ {[%clk 0:01:56.3]} 21... Rxd8 {[%clk 0:03:48.5]}
22. g4 {[%clk 0:01:52.8]} 22... Bg6 {[%clk 0:03:46.6]} 23. a3 {[%clk 0:01:38.6]}
23... Nd5 {[%clk 0:03:36.9]} 24. Ne5 {[%clk 0:01:32.6]} 24... Bc2 {[%clk
0:03:31.5]} 25. Rc1 {[%clk 0:01:23]} 25... Bxb3 {[%clk 0:03:26.4]} 26. Rc5
{[%clk 0:01:05.1]} 26... b6 {[%clk 0:03:19.6]} 27. Rc6 {[%clk 0:00:57.1]} 27...
Ba4 {[%clk 0:03:12.8]} 28. Rc4 {[%clk 0:00:54.3]} 28... Bb5 {[%clk 0:03:01.7]}
29. Rc2 {[%clk 0:00:52.9]} 29... Bxe2 {[%clk 0:02:59.5]} 30. Rxe2 {[%clk
0:00:52.3]} 30... g6 {[%clk 0:02:56.2]} 31. Rd2 {[%clk 0:00:47.3]} 31... Rc8
{[%clk 0:02:49.8]} 32. Nd7 {[%clk 0:00:40.5]} 32... Rc7 {[%clk 0:02:44.7]} 33.
Ne5 {[%clk 0:00:36.1]} 33... Rc3 {[%clk 0:02:37.6]} 34. a4 {[%clk 0:00:31]}
34... Kg7 {[%clk 0:02:12.5]} 35. Kg2 {[%clk 0:00:26.9]} 35... Ra3 {[%clk
0:01:56]} 36. Nf3 {[%clk 0:00:12.9]} 36... Rxa4 {[%clk 0:01:51.1]} 37. Nd4
{[%clk 0:00:10.1]} 37... h6 {[%clk 0:01:30.6]} 38. Nc6 {[%clk 0:00:06.2]} 38...
a6 {[%clk 0:01:24.3]} 39. Nd8 {[%clk 0:00:01]} 39... b5 {[%clk 0:01:20.9]} 0-1

[Event "Live Chess"]
[Site "Chess.com"]
[Date "2023.05.21"]
[Round "-"]
[White "NAZRIZ1977"]
[Black "Missedidea"]
[Result "0-1"]
[WhiteElo "2032"]
[BlackElo "1839"]
[TimeControl "300"]
[EndTime "16:52:04 PDT"]
[Termination "Missedidea won by resignation"]

1. d4 {[%clk 0:04:58.4]} 1... Nf6 {[%clk 0:04:58.5]} 2. Nc3 {[%clk 0:04:55.8]}
2... c5 {[%clk 0:04:56.6]} 3. d5 {[%clk 0:04:54.8]} 3... d6 {[%clk 0:04:55.3]}
4. e4 {[%clk 0:04:54.3]} 4... g6 {[%clk 0:04:54.2]} 5. Bb5+ {[%clk 0:04:53.8]}
5... Bd7 {[%clk 0:04:52.3]} 6. Be2 {[%clk 0:04:53.7]} 6... Bg7 {[%clk
0:04:50.6]} 7. a4 {[%clk 0:04:53.3]} 7... Na6 {[%clk 0:04:48.2]} 8. Nf3 {[%clk
0:04:52.4]} 8... Nc7 {[%clk 0:04:46.6]} 9. Nd2 {[%clk 0:04:51.8]} 9... O-O
{[%clk 0:04:44.1]} 10. Nc4 {[%clk 0:04:51.2]} 10... b6 {[%clk 0:04:40.3]} 11.
O-O {[%clk 0:04:50.2]} 11... Rb8 {[%clk 0:04:38.2]} 12. f4 {[%clk 0:04:48.2]}
12... a6 {[%clk 0:04:34.4]} 13. e5 {[%clk 0:04:47]} 13... Nfe8 {[%clk 0:04:29]}
14. exd6 {[%clk 0:04:37.4]} 14... exd6 {[%clk 0:04:22.7]} 15. Ne4 {[%clk
0:04:36.1]} 15... Bf5 {[%clk 0:04:16.4]} 16. Bf3 {[%clk 0:04:31.9]} 16... b5
{[%clk 0:04:13.5]} 17. Na5 {[%clk 0:04:30.8]} 17... Qd7 {[%clk 0:03:55.4]} 18.
Nc6 {[%clk 0:04:26.6]} 18... Rb6 {[%clk 0:03:53]} 19. a5 {[%clk 0:04:24]} 19...
Rxc6 {[%clk 0:03:51.2]} 20. dxc6 {[%clk 0:04:23]} 20... Qe7 {[%clk 0:03:44.2]}
21. Re1 {[%clk 0:04:18.3]} 21... Qh4 {[%clk 0:03:32.3]} 22. Nxd6 {[%clk
0:04:08.5]} 22... Nxd6 {[%clk 0:03:25.9]} 23. g3 {[%clk 0:04:03.8]} 23... Qf6
{[%clk 0:03:19.9]} 0-1

[Event "Live Chess"]
[Site "Chess.com"]
[Date "2023.05.21"]
[Round "-"]
[White "raminguy"]
[Black "1600x"]
[Result "1-0"]
[WhiteElo "1972"]
[BlackElo "1828"]
[TimeControl "300"]
[EndTime "16:52:05 PDT"]
[Termination "raminguy won by checkmate"]

1. d4 {[%clk 0:04:58.1]} 1... e5 {[%clk 0:04:59.9]} 2. dxe5 {[%clk 0:04:57]}
2... Nc6 {[%clk 0:04:51.1]} 3. Nf3 {[%clk 0:04:56.3]} 3... d6 {[%clk 0:04:47.9]}
4. Bg5 {[%clk 0:04:54.4]} 4... f6 {[%clk 0:04:46]} 5. exf6 {[%clk 0:04:53.3]}
5... Nxf6 {[%clk 0:04:43.3]} 6. Nc3 {[%clk 0:04:51.6]} 6... h6 {[%clk
0:04:41.7]} 7. Bh4 {[%clk 0:04:50.1]} 7... g5 {[%clk 0:04:40.5]} 8. Bg3 {[%clk
0:04:48.5]} 8... Bg7 {[%clk 0:04:39.1]} 9. e3 {[%clk 0:04:47.1]} 9... Nh5 {[%clk
0:04:37.9]} 10. Bb5 {[%clk 0:04:39.3]} 10... O-O {[%clk 0:04:35.2]} 11. Qd5+
{[%clk 0:04:19.2]} 11... Kh8 {[%clk 0:04:33.5]} 12. Bxc6 {[%clk 0:04:15.9]}
12... bxc6 {[%clk 0:04:31.6]} 13. Qxc6 {[%clk 0:04:14.3]} 13... Bd7 {[%clk
0:04:29.8]} 14. Qd5 {[%clk 0:04:09.4]} 14... Rf5 {[%clk 0:04:27.4]} 15. Qd3
{[%clk 0:04:01.3]} 15... Qb8 {[%clk 0:04:25.5]} 16. O-O-O {[%clk 0:03:39.4]}
16... Nxg3 {[%clk 0:04:23.5]} 17. hxg3 {[%clk 0:03:37.2]} 17... g4 {[%clk
0:04:21.2]} 18. Nd4 {[%clk 0:03:24.3]} 18... Rxf2 {[%clk 0:04:19]} 19. Qg6
{[%clk 0:03:20.1]} 19... Rf6 {[%clk 0:04:16.9]} 20. Rxh6+ {[%clk 0:03:08.4]}
20... Bxh6 {[%clk 0:04:14.7]} 21. Qxf6+ {[%clk 0:03:06.7]} 21... Bg7 {[%clk
0:04:12.9]} 22. Qg6 {[%clk 0:03:01.4]} 22... Bf6 {[%clk 0:04:12.8]} 23. Qxf6+
{[%clk 0:03:00]} 23... Kg8 {[%clk 0:04:11.3]} 24. Rh1 {[%clk 0:02:55.4]} 24...
Qxb2+ {[%clk 0:04:04.1]} 25. Kxb2 {[%clk 0:02:52.2]} 25... Rb8+ {[%clk
0:03:47.8]} 26. Kc1 {[%clk 0:02:49]} 26... Rb1+ {[%clk 0:03:44.7]} 27. Nxb1
{[%clk 0:02:47.5]} 27... d5 {[%clk 0:03:34.3]} 28. Rh8# {[%clk 0:02:45.5]} 1-0

[Event "Live Chess"]
[Site "Chess.com"]
[Date "2023.05.21"]
[Round "-"]
[White "PaulyD81"]
[Black "mattihelenius2"]
[Result "1-0"]
[WhiteElo "1149"]
[BlackElo "489"]
[TimeControl "300"]
[EndTime "16:52:12 PDT"]
[Termination "PaulyD81 won by checkmate"]

1. d4 {[%clk 0:04:59.2]} 1... d5 {[%clk 0:04:56.9]} 2. c4 {[%clk 0:04:56.7]}
2... dxc4 {[%clk 0:04:55]} 3. e3 {[%clk 0:04:55.6]} 3... Nc6 {[%clk 0:04:45.6]}
4. Bxc4 {[%clk 0:04:53.5]} 4... Nf6 {[%clk 0:04:38.6]} 5. Nf3 {[%clk 0:04:50.2]}
5... Ne4 {[%clk 0:04:37.3]} 6. Nc3 {[%clk 0:04:36.3]} 6... f5 {[%clk 0:04:21.1]}
7. Ng5 {[%clk 0:04:22.1]} 7... Nxg5 {[%clk 0:04:10.4]} 8. e4 {[%clk 0:04:16.2]}
8... fxe4 {[%clk 0:04:02.8]} 9. Bxg5 {[%clk 0:04:14.7]} 9... Qxd4 {[%clk
0:03:56.8]} 10. Qxd4 {[%clk 0:04:11.7]} 10... Nxd4 {[%clk 0:03:56.7]} 11. O-O
{[%clk 0:04:06.2]} 11... Nc2 {[%clk 0:03:53.5]} 12. Rac1 {[%clk 0:04:01.5]}
12... h6 {[%clk 0:03:31.1]} 13. Bf4 {[%clk 0:03:54.3]} 13... Nd4 {[%clk
0:03:28.5]} 14. Nxe4 {[%clk 0:03:49.7]} 14... Bf5 {[%clk 0:03:23.1]} 15. Ng3
{[%clk 0:03:39]} 15... Bg4 {[%clk 0:03:18.1]} 16. h3 {[%clk 0:03:34.1]} 16...
Ne2+ {[%clk 0:03:12.4]} 17. Nxe2 {[%clk 0:03:28.9]} 17... Bxe2 {[%clk 0:03:11]}
18. Bxe2 {[%clk 0:03:27.7]} 18... Rd8 {[%clk 0:03:08.9]} 19. Bb5+ {[%clk
0:03:22.8]} 19... c6 {[%clk 0:03:07.6]} 20. Ba4 {[%clk 0:03:19.7]} 20... g5
{[%clk 0:03:05.1]} 21. Bc7 {[%clk 0:03:10.9]} 21... Rd7 {[%clk 0:03:03.1]} 22.
Be5 {[%clk 0:03:08.5]} 22... Rg8 {[%clk 0:02:59]} 23. Bb3 {[%clk 0:03:05.7]}
23... Rg6 {[%clk 0:02:38.3]} 24. Rcd1 {[%clk 0:03:01.5]} 24... Rxd1 {[%clk
0:02:36.4]} 25. Rxd1 {[%clk 0:03:00.1]} 25... Re6 {[%clk 0:02:35.2]} 26. Bxe6
{[%clk 0:02:55.1]} 26... Bg7 {[%clk 0:02:33.2]} 27. Bxg7 {[%clk 0:02:53.2]}
27... b5 {[%clk 0:02:28.8]} 28. Bd7+ {[%clk 0:02:51.4]} 28... Kf7 {[%clk
0:02:27.1]} 29. Bxh6 {[%clk 0:02:46]} 29... Kg6 {[%clk 0:02:25.7]} 30. Bf8
{[%clk 0:02:43]} 30... a6 {[%clk 0:02:23.2]} 31. Be8+ {[%clk 0:02:40.6]} 31...
Kf6 {[%clk 0:02:20.4]} 32. Re1 {[%clk 0:02:38.3]} 32... Kf5 {[%clk 0:02:18.5]}
33. Bxe7 {[%clk 0:02:34.7]} 33... Kf4 {[%clk 0:02:16.6]} 34. Bd7 {[%clk
0:02:33.3]} 34... g4 {[%clk 0:01:55.9]} 35. Bxg4 {[%clk 0:02:28.1]} 35... c5
{[%clk 0:01:46.5]} 36. Bd6+ {[%clk 0:02:18.9]} 36... Kg5 {[%clk 0:01:43.6]} 37.
Re5+ {[%clk 0:02:15.9]} 37... Kf6 {[%clk 0:01:41.9]} 38. h4 {[%clk 0:02:07]}
38... Kg7 {[%clk 0:01:35.7]} 39. h5 {[%clk 0:02:05.1]} 39... Kh6 {[%clk
0:01:34.1]} 40. Re6+ {[%clk 0:02:02.6]} 40... Kg5 {[%clk 0:01:32.6]} 41. Rg6+
{[%clk 0:01:57.8]} 41... Kh4 {[%clk 0:01:30.5]} 42. Be7# {[%clk 0:01:55.2]} 1-0

[Event "Live Chess"]
[Site "Chess.com"]
[Date "2023.05.21"]
[Round "-"]
[White "birdseed45"]
[Black "stevochess11"]
[Result "0-1"]
[WhiteElo "1867"]
[BlackElo "1776"]
[TimeControl "300"]
[EndTime "16:52:16 PDT"]
[Termination "stevochess11 won by checkmate"]

1. e4 {[%clk 0:04:57.9]} 1... c5 {[%clk 0:04:58.4]} 2. Nf3 {[%clk 0:04:56.3]}
2... g6 {[%clk 0:04:57.2]} 3. d4 {[%clk 0:04:55.8]} 3... cxd4 {[%clk 0:04:56.1]}
4. Nxd4 {[%clk 0:04:55.7]} 4... Nc6 {[%clk 0:04:55.1]} 5. Nc3 {[%clk 0:04:55]}
5... Bg7 {[%clk 0:04:53.7]} 6. Nxc6 {[%clk 0:04:53.5]} 6... bxc6 {[%clk
0:04:52.6]} 7. Be3 {[%clk 0:04:52.8]} 7... Nf6 {[%clk 0:04:45.4]} 8. Bc4 {[%clk
0:04:50.3]} 8... O-O {[%clk 0:04:43.9]} 9. O-O {[%clk 0:04:48.7]} 9... d6 {[%clk
0:04:36.4]} 10. h3 {[%clk 0:04:46.5]} 10... Rb8 {[%clk 0:04:28.8]} 11. Rb1
{[%clk 0:04:44.2]} 11... a5 {[%clk 0:04:23.4]} 12. a3 {[%clk 0:04:41.6]} 12...
Nd7 {[%clk 0:04:17]} 13. Ne2 {[%clk 0:04:31.9]} 13... Rxb2 {[%clk 0:04:12.8]}
14. Bd4 {[%clk 0:04:25.8]} 14... Rxb1 {[%clk 0:04:11.6]} 15. Qxb1 {[%clk
0:04:23.6]} 15... Ne5 {[%clk 0:04:07.9]} 16. Ba2 {[%clk 0:04:17]} 16... c5
{[%clk 0:03:59.1]} 17. Ba1 {[%clk 0:04:14.5]} 17... Bxh3 {[%clk 0:03:39]} 18.
gxh3 {[%clk 0:04:00.6]} 18... Nf3+ {[%clk 0:03:37.7]} 19. Kg2 {[%clk 0:03:56.8]}
19... Nd2 {[%clk 0:03:36.6]} 20. Qd1 {[%clk 0:03:50.4]} 20... Nxf1 {[%clk
0:03:34.2]} 21. Qxf1 {[%clk 0:03:49.9]} 21... Qa8 {[%clk 0:03:29]} 22. f3 {[%clk
0:03:44.3]} 22... Qa6 {[%clk 0:03:15]} 23. Bxg7 {[%clk 0:03:41.4]} 23... Kxg7
{[%clk 0:03:14.8]} 24. Qf2 {[%clk 0:03:33.9]} 24... Rb8 {[%clk 0:03:10.2]} 25.
Bb3 {[%clk 0:03:28.6]} 25... a4 {[%clk 0:03:03.2]} 26. Bd5 {[%clk 0:03:23.6]}
26... Rb2 {[%clk 0:02:57.2]} 27. Nc1 {[%clk 0:02:57]} 27... e6 {[%clk 0:02:45]}
28. Nd3 {[%clk 0:02:52.4]} 28... Qxd3 {[%clk 0:02:32.8]} 29. cxd3 {[%clk
0:02:51.4]} 29... Rxf2+ {[%clk 0:02:31.9]} 30. Kxf2 {[%clk 0:02:50.9]} 30...
exd5 {[%clk 0:02:31.1]} 31. exd5 {[%clk 0:02:50.1]} 31... Kf6 {[%clk 0:02:29.3]}
32. Ke3 {[%clk 0:02:49.5]} 32... Ke5 {[%clk 0:02:28.5]} 33. h4 {[%clk
0:02:43.7]} 33... Kxd5 {[%clk 0:02:27.1]} 34. Kf4 {[%clk 0:02:41.9]} 34... Kd4
{[%clk 0:02:24.6]} 35. Kg5 {[%clk 0:02:41.2]} 35... Kxd3 {[%clk 0:02:22.6]} 36.
Kf6 {[%clk 0:02:41.1]} 36... c4 {[%clk 0:02:20]} 37. Kxf7 {[%clk 0:02:40.9]}
37... c3 {[%clk 0:02:19.5]} 38. Kg7 {[%clk 0:02:40.8]} 38... c2 {[%clk
0:02:18.6]} 39. Kxh7 {[%clk 0:02:40.7]} 39... c1=Q {[%clk 0:02:17.3]} 40. Kxg6
{[%clk 0:02:40.6]} 40... Qg1+ {[%clk 0:02:14.4]} 41. Kh6 {[%clk 0:02:38.7]}
41... Ke3 {[%clk 0:02:13.4]} 42. h5 {[%clk 0:02:37.2]} 42... Kf4 {[%clk
0:02:12.7]} 43. Kh7 {[%clk 0:02:36.2]} 43... Qg5 {[%clk 0:02:11.6]} 44. h6
{[%clk 0:02:35.2]} 44... Kf5 {[%clk 0:02:09.5]} 45. Kh8 {[%clk 0:02:33.8]} 45...
Qxh6+ {[%clk 0:02:07.6]} 46. Kg8 {[%clk 0:02:32.1]} 46... Kf6 {[%clk 0:02:06.5]}
47. f4 {[%clk 0:02:31.2]} 47... Qg7# {[%clk 0:02:05.6]} 0-1

[Event "Live Chess"]
[Site "Chess.com"]
[Date "2023.05.21"]
[Round "-"]
[White "Biranidun"]
[Black "smoggyrabbit"]
[Result "1-0"]
[WhiteElo "2655"]
[BlackElo "1753"]
[TimeControl "300"]
[EndTime "16:52:57 PDT"]
[Termination "Biranidun won by resignation"]

1. e4 {[%clk 0:04:59.1]} 1... e6 {[%clk 0:04:59.2]} 2. d4 {[%clk 0:04:58.3]}
2... d5 {[%clk 0:04:58.5]} 3. e5 {[%clk 0:04:57.8]} 3... c5 {[%clk 0:04:57.3]}
4. c3 {[%clk 0:04:57.4]} 4... Nc6 {[%clk 0:04:56.2]} 5. Nf3 {[%clk 0:04:57.1]}
5... Bd7 {[%clk 0:04:55.4]} 6. Bd3 {[%clk 0:04:56.6]} 6... Rc8 {[%clk
0:04:54.7]} 7. a3 {[%clk 0:04:54.2]} 7... c4 {[%clk 0:04:46.3]} 8. Bc2 {[%clk
0:04:53.2]} 8... Na5 {[%clk 0:04:45.2]} 9. O-O {[%clk 0:04:52.2]} 9... Bc6
{[%clk 0:04:44.4]} 10. Nbd2 {[%clk 0:04:51.5]} 10... Qd7 {[%clk 0:04:43.4]} 11.
Ng5 {[%clk 0:04:50.8]} 11... h6 {[%clk 0:04:34.2]} 12. Qh5 {[%clk 0:04:49.1]}
12... b6 {[%clk 0:03:50.4]} 13. Nxf7 {[%clk 0:04:43.6]} 13... Nb7 {[%clk
0:03:20.5]} 14. Nxh8+ {[%clk 0:04:42.2]} 14... Kd8 {[%clk 0:03:19.4]} 15. f4
{[%clk 0:04:39.3]} 15... Ne7 {[%clk 0:03:17.6]} 16. f5 {[%clk 0:04:37.8]} 16...
Nxf5 {[%clk 0:03:14.7]} 17. Bxf5 {[%clk 0:04:33.8]} 17... exf5 {[%clk
0:03:11.7]} 18. Rxf5 {[%clk 0:04:33.7]} 18... Be7 {[%clk 0:03:04]} 19. Ng6
{[%clk 0:04:32.9]} 19... Bg5 {[%clk 0:02:59]} 20. Rf8+ {[%clk 0:04:19.6]} 20...
Kc7 {[%clk 0:02:57.5]} 21. Rxc8+ {[%clk 0:04:19.5]} 21... Kxc8 {[%clk
0:02:46.9]} 22. Nf3 {[%clk 0:04:19.4]} 22... Bxc1 {[%clk 0:02:39.2]} 23. Rxc1
{[%clk 0:04:19.3]} 23... Qf7 {[%clk 0:02:36.6]} 24. e6 {[%clk 0:04:17.4]} 24...
Qxe6 {[%clk 0:02:33.3]} 25. Re1 {[%clk 0:04:16.9]} 25... Qf6 {[%clk 0:02:28.2]}
26. Ne7+ {[%clk 0:04:15.6]} 26... Kc7 {[%clk 0:02:24.5]} 27. Nxc6 {[%clk
0:04:15]} 27... Kxc6 {[%clk 0:02:21.1]} 28. Qe8+ {[%clk 0:04:14]} 1-0